bitfinex-derivatives/quotes_BTCF0:USTF0_20250309
["timestamp","ask_amount","ask_price","bid_price","bid_amount"]
[1741538470847,0.2673827,82644.0,82626.0,0.3608]
[1741538471044,0.2673827,82644.0,82632.0,0.1344194]
[1741538471248,0.14636,82644.0,82632.0,0.0739]
[1741538471450,0.1210227,82644.0,82643.0,0.12120552]
[1741538472153,0.14564,82650.0,82643.0,0.12120552]
[1741538472154,0.0604985,82662.0,82643.0,0.36098142]
[1741538472348,0.1210227,82644.0,82643.0,0.12119892]
[1741538472657,0.1193,82654.0,82643.0,0.00018142]
[1741538473155,0.1210227,82644.0,82643.0,0.00018142]
[1741538473754,0.2403227,82644.0,82643.0,0.00018142]
[1741538475051,0.2403227,82644.0,82643.0,2e-08]
[1741538475356,0.2403227,82644.0,82634.0,0.1210326]
[1741538475357,0.2379,82644.0,82634.0,0.1210326]
[1741538475554,0.0605157,82639.0,82636.0,0.1210329]
[1741538475752,0.2334,82638.0,82637.0,0.1210329]
[1741538475953,0.14556,82645.0,82637.0,0.4818329]
[1741538476259,0.121,82644.0,82643.0,0.1210241]
[1741538476445,0.2334,82644.0,82637.0,0.061236]
[1741538476649,0.1210242,82643.0,82642.0,0.1210241]
[1741538476955,0.3608,82658.0,82642.0,0.3608]
[1741538477158,0.14416,82664.0,82648.0,0.33372021]
[1741538477159,0.1124,82659.0,82648.0,0.33372021]
[1741538477457,0.1815284,82650.0,82649.0,0.0605066]
[1741538477851,0.0605104,82646.0,82642.0,0.3608]
[1741538478049,0.1210241,82643.0,82630.0,0.33372021]
[1741538478249,0.1211014,82591.0,82585.0,0.1211088]
[1741538478450,0.7216,82586.0,82585.0,0.1211091]
[1741538478650,0.7216,82586.0,82571.0,0.00929331]
[1741538478868,0.3608,82586.0,82574.0,0.1211252]
[1741538479056,0.3608,82591.0,82580.0,0.3608]
[1741538479250,0.3608,82591.0,82574.0,0.1211252]
[1741538479251,0.1211135,82582.0,82581.0,0.1174]
[1741538479449,0.1211135,82582.0,82574.0,0.1211252]
[1741538479450,0.1211194,82578.0,82577.0,0.00018155]
[1741538479954,0.3608,82580.0,82577.0,0.00018155]
[1741538480146,0.1211194,82578.0,82577.0,0.00018155]
[1741538480954,0.2351194,82578.0,82577.0,0.00018155]
[1741538481155,0.114,82578.0,82548.0,0.3608]
[1741538481363,0.114,82578.0,82533.0,0.21316]
[1741538481364,0.1211555,82554.0,82553.0,0.1211551]
[1741538481555,0.3608,82561.0,82560.0,0.1211458]
[1741538481756,0.3608,82567.0,82566.0,0.121137]
[1741538482159,0.3608,82582.0,82566.0,0.3608]
[1741538482354,0.3608,82592.0,82590.0,0.1211018]
[1741538482554,0.3608,82592.0,82577.0,0.3608]
[1741538482555,0.3608,82612.0,82586.0,0.3608]
[1741538482759,0.3608,82625.0,82617.0,0.1210622]
[1741538483057,0.4213257,82625.0,82617.0,0.1210622]
[1741538483260,0.3608,82625.0,82616.0,0.1247]
[1741538483459,0.1210622,82617.0,82616.0,0.1247]
[1741538483758,0.3608,82625.0,82617.0,0.1210622]
[1741538484163,0.36261701,82618.0,82610.0,0.14392]
[1741538484457,0.00181701,82618.0,82617.0,0.1210622]
[1741538484960,0.1210637,82616.0,82615.0,0.1210622]
[1741538485259,0.1815952,82617.0,82616.0,0.1210637]
[1741538485459,0.00181701,82618.0,82613.0,0.060534]
[1741538485662,0.12287881,82618.0,82617.0,0.1210622]
[1741538485965,0.36261701,82618.0,82610.0,0.14392]
[1741538486166,0.0605338,82614.0,82613.0,0.1210681]
[1741538486371,0.1210638,82616.0,82615.0,0.1210637]
[1741538487268,0.00181701,82618.0,82617.0,0.1210622]
[1741538487465,0.3608,82638.0,82613.0,0.3608]
[1741538487466,0.060518,82635.0,82613.0,0.3608]
[1741538487661,0.1815823,82624.0,82623.0,0.1210508]
[1741538487859,0.060526,82624.0,82622.0,0.14228]
[1741538488166,0.1210725,82610.0,82595.0,0.3608]
[1741538488356,0.1211018,82590.0,82589.0,0.476221]
[1741538488554,0.2481,82609.0,82589.0,0.71592]
[1741538488758,0.1210915,82598.0,82597.0,0.2421715]
[1741538488959,0.3608,82602.0,82589.0,0.35576]
[1741538489164,0.3608,82595.0,82589.0,0.35512]
[1741538489369,0.1210978,82593.0,82592.0,0.1210959]
[1741538489561,0.00018156,82600.0,82599.0,0.1210886]
[1741538490559,0.12126866,82600.0,82599.0,0.1210886]
[1741538490868,0.1816418,82597.0,82596.0,0.1210886]
[1741538491064,0.1210944,82595.0,82594.0,0.0605474]
[1741538491263,0.1210944,82595.0,82589.0,0.3342991]
[1741538491264,0.1211018,82590.0,82589.0,0.3342991]
[1741538491663,0.1211018,82590.0,82589.0,0.1210991]
[1741538491958,0.0605544,82586.0,82585.0,0.1211078]
[1741538492159,0.5424602,82588.0,82587.0,0.1211062]
[1741538492667,0.14048,82596.0,82595.0,0.1210944]
[1741538492864,0.5012,82604.0,82593.0,0.0605481]
[1741538493072,0.00104001,82604.0,82599.0,0.4818886]
[1741538493268,0.3608,82612.0,82599.0,0.4818886]
[1741538493760,0.3608,82622.0,82599.0,0.5108]
[1741538493961,0.3448,82622.0,82621.0,0.1210563]
[1741538494465,0.4818373,82634.0,82633.0,0.1210388]
[1741538494661,0.00181621,82639.0,82638.0,0.1210314]
[1741538494863,0.00181621,82639.0,82622.0,0.13976]
[1741538495058,0.3608,82634.0,82633.0,0.1210381]
[1741538495258,0.1210417,82631.0,82630.0,0.00018156]
[1741538495664,0.1210417,82631.0,82630.0,0.12122476]
[1741538495859,0.1210417,82631.0,82630.0,0.00018156]
[1741538496062,0.0605226,82629.0,82628.0,0.1210442]
[1741538496262,0.5423613,82632.0,82631.0,0.1210417]
[1741538496463,0.5423613,82632.0,82629.0,0.0605217]
[1741538496464,0.1210432,82630.0,82629.0,0.1225]
[1741538496861,0.1210593,82619.0,82618.0,0.2132]
[1741538497063,0.3608,82623.0,82609.0,0.14028]
[1741538497265,0.3608,82623.0,82612.0,0.1210695]
[1741538497266,0.3608,82613.0,82612.0,0.1210695]
[1741538497471,0.3608,82623.0,82622.0,0.1210549]
[1741538497876,0.00018156,82627.0,82626.0,0.121049]
[1741538498573,0.00181621,82639.0,82638.0,0.1210314]
[1741538498778,0.1815634,82633.0,82626.0,0.13988]
[1741538498971,0.00181621,82639.0,82637.0,0.1210329]
[1741538498972,0.1210315,82638.0,82637.0,0.1210329]
[1741538499174,0.12284761,82639.0,82638.0,0.1210314]
[1741538499372,0.1210314,82638.0,82637.0,0.1210314]
[1741538499575,0.1210314,82638.0,82636.0,0.1259]
[1741538499576,0.1210329,82637.0,82636.0,0.1259]
[1741538499879,0.1210417,82631.0,82630.0,0.00018156]
[1741538500785,0.3608,82632.0,82630.0,0.00018156]
[1741538500980,0.4818402,82632.0,82631.0,0.1210417]
[1741538501173,0.1210417,82631.0,82630.0,0.00018156]
[1741538502083,0.0990417,82631.0,82630.0,0.00018156]
[1741538502885,0.3608,82632.0,82630.0,0.00018156]
[1741538503184,0.3608,82632.0,82631.0,0.1210417]
[1741538503374,0.00181621,82639.0,82631.0,0.1210417]
[1741538503576,0.00181621,82639.0,82638.0,0.1210314]
[1741538503780,0.00018156,82647.0,82638.0,0.13832]
[1741538503980,6e-08,82647.0,82646.0,0.4818197]
[1741538504186,6e-08,82647.0,82646.0,0.1210197]
[1741538504577,6e-08,82647.0,82646.0,0.2710197]
[1741538504783,6e-08,82647.0,82646.0,0.1210197]
[1741538505284,6e-08,82647.0,82646.0,0.2710197]
[1741538505479,6e-08,82647.0,82646.0,0.41243503]
[1741538505985,6e-08,82647.0,82646.0,0.66123503]
[1741538506183,6e-08,82647.0,82646.0,0.51123503]
[1741538506480,6e-08,82647.0,82646.0,0.3698197]
[1741538507076,6e-08,82647.0,82646.0,0.2488]
[1741538507077,0.12101836,82647.0,82646.0,0.2488]
[1741538507277,0.12101836,82647.0,82646.0,0.1208]
[1741538507488,6e-08,82647.0,82644.0,0.0605107]
[1741538507787,6e-08,82647.0,82646.0,0.1210197]
[1741538508381,6e-08,82647.0,82646.0,0.3635197]
[1741538509886,0.1815086,82658.0,82657.0,0.1210022]
[1741538510075,0.1210021,82659.0,82658.0,0.0605002]
[1741538510276,0.3608,82663.0,82646.0,0.2425]
[1741538510475,0.3608,82663.0,82662.0,0.1209963]
[1741538510878,0.4817948,82663.0,82662.0,0.1209963]
[1741538511074,0.4817948,82663.0,82660.0,0.178099]
[1741538511075,0.1209978,82661.0,82652.0,0.1358]
[1741538511382,0.1210065,82655.0,82652.0,0.1210101]
[1741538511579,0.0605012,82658.0,82649.0,0.2469]
[1741538511785,0.0018154,82666.0,82661.0,0.1209963]
[1741538511975,0.4817954,82663.0,82662.0,0.1209963]
[1741538512484,0.3608,82663.0,82662.0,0.1209963]
[1741538512988,0.4817948,82663.0,82662.0,0.1209963]
[1741538513377,0.3608,82663.0,82662.0,0.1209963]
[1741538513687,0.2568348,82664.0,82663.0,0.1209948]
[1741538513887,0.1209948,82664.0,82663.0,0.1209948]
[1741538514078,0.0018154,82666.0,82663.0,0.1209948]
[1741538514275,0.0018154,82666.0,82665.0,0.1209919]
[1741538514481,0.3608,82667.0,82666.0,0.1209904]
[1741538514988,0.3608,82667.0,82666.0,0.3632904]
[1741538515786,0.3608,82690.0,82689.0,0.1209568]
[1741538515984,0.1209573,82689.0,82688.0,0.1209583]
[1741538516185,0.1286,82689.0,82688.0,0.1209583]
[1741538516684,0.2495568,82689.0,82688.0,0.1209583]
[1741538516993,0.1286,82689.0,82688.0,0.1209583]
[1741538517290,0.1209583,82688.0,82687.0,0.1208]
[1741538517593,0.1209685,82681.0,82680.0,0.12115084]
[1741538517778,0.4817685,82681.0,82680.0,0.00018144]
[1741538518485,0.4817685,82681.0,82680.0,4e-08]
[1741538519389,0.6147285,82681.0,82680.0,4e-08]
[1741538519783,0.4817685,82681.0,82680.0,4e-08]
[1741538519984,0.4936,82681.0,82680.0,0.12097004]
[1741538520481,0.3608,82687.0,82686.0,0.1209612]
[1741538520792,0.3608,82687.0,82683.0,0.0604824]
[1741538520793,0.00181535,82696.0,82692.0,0.1209524]
[1741538520985,0.00511158,82698.0,82697.0,0.1209451]
[1741538521297,0.3608,82716.0,82715.0,0.1209188]
[1741538521682,0.3608,82732.0,82731.0,0.1208954]
[1741538522393,0.3608,82732.0,82731.0,0.2530954]
[1741538522587,0.3608,82742.0,82739.0,0.1208837]
[1741538522792,0.3608,82742.0,82740.0,0.2408]
[1741538522991,0.3608,82752.0,82740.0,0.6016]
[1741538523194,0.3608,82752.0,82751.0,0.1208662]
[1741538523498,0.3608,82752.0,82751.0,0.2576262]
[1741538523895,0.00018131,82760.0,82759.0,0.1208545]
[1741538524088,0.00181301,82777.0,82776.0,0.1208297]
[1741538524493,0.00181301,82777.0,82776.0,0.3338297]
[1741538524691,0.3608,82783.0,82782.0,0.1208209]
[1741538524887,0.1,82800.0,82782.0,0.49704]
[1741538525086,0.1,82800.0,82799.0,0.1207961]
[1741538525292,0.1,82800.0,82797.0,0.213]
[1741538525490,0.4817773,82799.0,82798.0,0.1206]
[1741538525690,0.1207976,82798.0,82797.0,0.213]
[1741538525888,0.4859812,82799.0,82790.0,0.1206]
[1741538526291,0.4859812,82799.0,82791.0,0.1208078]
[1741538526491,0.4859812,82799.0,82790.0,0.1206]
[1741538526798,0.3608,82798.0,82797.0,0.120799]
[1741538526998,0.0001812,82799.0,82798.0,0.2407976]
[1741538527296,0.00096001,82815.0,82814.0,0.1207742]
[1741538527490,0.3608,82832.0,82823.0,0.1207611]
[1741538527691,0.3608,82832.0,82830.0,0.1207509]
[1741538527889,0.3608,82832.0,82831.0,0.12]
[1741538528598,0.00012065,82840.0,82831.0,0.12]
[1741538528797,0.3608,82835.0,82832.0,0.1245]
[1741538529100,0.1207538,82828.0,82822.0,0.00064]
[1741538529287,0.1207596,82824.0,82818.0,0.13652]
[1741538529898,0.118,82827.0,82818.0,0.13652]
[1741538530090,0.4211772,82828.0,82818.0,0.13652]
[1741538530091,0.1207596,82824.0,82818.0,0.13652]
[1741538530498,0.1207596,82824.0,82814.0,0.117]
[1741538531001,0.2467596,82824.0,82814.0,0.117]
[1741538531198,0.118,82825.0,82820.0,0.0603822]
[1741538531501,0.3608,82828.0,82815.0,0.1245]
[1741538531698,0.2501596,82824.0,82813.0,0.14141533]
[1741538531898,0.6109596,82824.0,82807.0,0.117]
[1741538532502,0.4902,82824.0,82815.0,0.13576]
[1741538532701,0.6109596,82824.0,82816.0,0.125]
[1741538533097,0.6109596,82824.0,82802.0,0.13596]
[1741538533399,0.4902,82824.0,82802.0,0.13596]
[1741538533599,0.3608,82803.0,82798.0,0.34864]
[1741538533991,0.0603958,82802.0,82799.0,0.125]
[1741538534198,0.1207961,82799.0,82798.0,0.34864]
[1741538534502,0.1207961,82799.0,82798.0,0.21284]
[1741538534700,0.1208078,82791.0,82790.0,0.00018109]
[1741538534899,0.4596078,82791.0,82790.0,0.00018109]
[1741538535100,0.1208428,82767.0,82766.0,0.2128]
[1741538535302,0.3608,82767.0,82766.0,0.2128]
[1741538535503,0.4816428,82767.0,82766.0,0.2128]
[1741538535707,0.4816428,82767.0,82757.0,0.2427]
[1741538535708,0.3608,82767.0,82757.0,0.2427]
[1741538535897,0.2434,82766.0,82765.0,0.1208457]
[1741538536099,0.6042,82766.0,82751.0,0.34804]
[1741538536303,0.4816603,82755.0,82751.0,0.2128]
[1741538536605,0.4816603,82755.0,82752.0,0.0001812]
[1741538536804,0.4816603,82755.0,82752.0,0.1210454]
[1741538537101,0.4816603,82755.0,82752.0,0.0001812]
[1741538537102,0.3608,82755.0,82752.0,0.0001812]
[1741538537306,0.3608,82766.0,82755.0,0.0604301]
[1741538537507,0.1249,82765.0,82752.0,0.1215812]
[1741538537704,0.1208603,82755.0,82752.0,0.0001812]
[1741538538095,0.4816603,82755.0,82752.0,0.0001812]
[1741538538303,0.33979029,82755.0,82748.0,0.00181266]
[1741538538500,0.2532,82754.0,82748.0,0.00181266]
[1741538538704,0.2532,82754.0,82751.0,0.1208641]
[1741538538910,0.2532,82754.0,82748.0,0.00181266]
[1741538539116,0.1208691,82749.0,82748.0,0.12268316]
[1741538539311,0.2532,82754.0,82753.0,0.1208632]
[1741538539607,0.3608,82771.0,82753.0,0.0604316]
[1741538539811,0.3608,82761.0,82760.0,0.120853]
[1741538540010,0.0001812,82762.0,82759.0,0.1258]
[1741538540211,0.1208632,82753.0,82752.0,0.13376]
[1741538540412,0.1208647,82752.0,82751.0,0.0001812]
[1741538540611,0.2507647,82752.0,82751.0,0.0001812]
[1741538540813,0.3845247,82752.0,82751.0,0.0001812]
[1741538541015,0.3845247,82752.0,82724.0,0.1942525]
[1741538541016,0.0604336,82751.0,82724.0,0.1942525]
[1741538541215,0.3608,82739.0,82738.0,0.1208838]
[1741538541415,0.1299,82750.0,82749.0,0.1208691]
[1741538541610,0.1208715,82748.0,82747.0,0.1208715]
[1741538541916,0.04805097,82751.0,82740.0,0.1212]
[1741538542114,0.3608,82753.0,82752.0,0.1208647]
[1741538542618,0.4816632,82753.0,82752.0,0.1208647]
[1741538542820,0.3388,82753.0,82752.0,0.1208647]
[1741538543322,0.0001812,82762.0,82761.0,0.1208516]
[1741538543822,0.0001812,82762.0,82761.0,0.34564]
[1741538544031,0.1210313,82762.0,82761.0,0.34564]
[1741538544413,0.1208735,82746.0,82745.0,0.21284]
[1741538544616,0.1208735,82746.0,82745.0,0.33664]
[1741538544819,0.3608,82746.0,82745.0,0.4575149]
[1741538545217,0.1208685,82750.0,82749.0,0.1208691]
[1741538545415,0.1208685,82750.0,82745.0,0.33664]
[1741538545709,0.0604311,82754.0,82746.0,0.1208727]
[1741538545710,0.4816735,82747.0,82746.0,0.1208727]
[1741538546017,0.3608,82756.0,82755.0,0.1208603]
[1741538546611,0.3608,82772.0,82755.0,0.1208603]
[1741538546612,0.3608,82772.0,82761.0,0.1208516]
[1741538547022,0.3608,82772.0,82761.0,0.4816516]
[1741538547224,0.1253,82789.0,82761.0,0.6395]
[1741538547419,0.13184,82789.0,82787.0,0.1208136]
[1741538547723,0.13184,82789.0,82788.0,0.1287]
[1741538547724,0.2526507,82789.0,82788.0,0.1287]
[1741538548311,0.13184,82789.0,82771.0,0.49264]
[1741538548525,0.13184,82789.0,82754.0,0.00064]
[1741538548526,0.3608,82773.0,82750.0,0.21284]
[1741538548730,0.4816443,82766.0,82760.0,0.1208524]
[1741538549024,0.4816443,82766.0,82762.0,0.1208501]
[1741538549225,0.3608,82766.0,82765.0,0.12265827]
[1741538549420,0.13148,82771.0,82770.0,0.1208384]
[1741538549727,0.0001812,82779.0,82778.0,0.1208267]
[1741538550315,0.3608,82803.0,82778.0,0.3608]
[1741538550514,0.13104,82799.0,82790.0,0.1208092]
[1741538550715,0.38,82807.0,82805.0,0.1207873]
[1741538550913,0.1207726,82816.0,82800.0,0.3608]
[1741538551111,0.0603813,82822.0,82813.0,0.1207757]
[1741538551112,0.2542,82814.0,82813.0,0.1207757]
[1741538551825,0.3749742,82814.0,82813.0,0.1207757]
[1741538552228,0.0001812,82822.0,82814.0,0.1207742]
[1741538552419,0.0603831,82820.0,82818.0,0.1207655]
[1741538552625,0.1811583,82817.0,82816.0,0.1207704]
[1741538553229,0.1255,82817.0,82816.0,0.1207704]
[1741538553423,0.0001812,82822.0,82816.0,0.1207704]
[1741538553622,0.0001812,82822.0,82821.0,0.120764]
[1741538554318,0.00181212,82832.0,82821.0,0.3608]
[1741538554520,0.00181212,82832.0,82831.0,0.1207494]
[1741538554721,0.12256012,82832.0,82831.0,0.1207494]
[1741538555324,0.1207494,82831.0,82830.0,0.1286]
[1741538555528,0.1207611,82823.0,82822.0,0.21276]
[1741538555823,0.3608,82825.0,82824.0,0.1207582]
[1741538556024,0.3608,82825.0,82824.0,0.2524582]
[1741538556228,0.4815582,82825.0,82824.0,0.3839582]
[1741538556432,0.4815582,82825.0,82823.0,0.06038]
[1741538556433,0.1207611,82823.0,82822.0,0.21276]
[1741538556634,0.1207611,82823.0,82822.0,0.3335226]
[1741538557134,0.2493611,82823.0,82822.0,0.21276]
[1741538557428,0.060384,82819.0,82816.0,0.0001812]
[1741538557634,0.4815698,82817.0,82816.0,0.0001812]
[1741538557828,0.4815698,82817.0,82816.0,0.1209525]
[1741538558631,0.4815698,82817.0,82816.0,0.0001812]
[1741538558828,0.1207946,82801.0,82800.0,0.1207933]
[1741538559032,0.1207946,82800.0,82797.0,0.33411176]
[1741538559228,0.1214,82800.0,82797.0,0.39451066]
[1741538559532,0.2179,82815.0,82814.0,0.1207742]
[1741538559726,0.3386728,82815.0,82814.0,0.1207742]
[1741538559927,0.2179,82815.0,82812.0,0.3665742]
[1741538560233,0.2179,82815.0,82814.0,0.1207742]
[1741538560427,0.13096001,82816.0,82814.0,0.241547]
[1741538560623,0.13,82816.0,82814.0,0.1207728]
[1741538560927,0.2507713,82816.0,82815.0,0.2428728]
[1741538561131,0.3608,82819.0,82816.0,0.1207713]
[1741538561331,0.01769219,82826.0,82816.0,0.1207713]
[1741538561332,0.12888,82826.0,82822.0,0.1207626]
[1741538561736,0.00181212,82832.0,82822.0,0.1207626]
[1741538562329,0.1209423,82823.0,82822.0,0.1207626]
[1741538562528,0.1207684,82818.0,82817.0,0.38192319]
[1741538562826,0.4815684,82818.0,82817.0,0.1285]
[1741538563027,0.1813262,82823.0,82822.0,0.1207626]
[1741538563228,0.0001812,82823.0,82822.0,0.1207626]
[1741538564237,0.1209423,82823.0,82822.0,0.1207626]
[1741538565036,0.0001812,82823.0,82822.0,0.1207626]
[1741538565439,0.34079332,82834.0,82819.0,0.1207655]
[1741538565632,0.34079332,82834.0,82833.0,0.1207465]
[1741538565933,0.46153842,82834.0,82830.0,0.0603753]
[1741538566137,0.1207494,82832.0,82831.0,0.1198]
[1741538566632,0.1207494,82832.0,82831.0,0.2405494]
[1741538566832,0.1207494,82832.0,82831.0,0.1198]
[1741538567033,0.2520494,82832.0,82831.0,0.2405494]
[1741538567237,0.1207596,82826.0,82825.0,0.1811274]
[1741538567438,0.1207596,82826.0,82825.0,0.2415049]
[1741538567840,0.1207518,82831.0,82830.0,0.1207494]
[1741538568139,0.00018109,82840.0,82827.0,0.2730555]
[1741538568438,0.00018109,82840.0,82833.0,0.3608]
[1741538568638,0.00018109,82840.0,82830.0,0.46062021]
[1741538568639,0.00018109,82840.0,82836.0,0.0603709]
[1741538568940,0.1207392,82839.0,82838.0,0.1207378]
[1741538569138,0.00018109,82840.0,82839.0,0.1207378]
[1741538569440,0.12091739,82840.0,82839.0,0.1269]
[1741538569638,0.12091739,82840.0,82839.0,0.2476378]
[1741538569838,0.00018109,82840.0,82839.0,0.2476378]
[1741538570743,0.12091739,82840.0,82839.0,0.2476378]
[1741538570936,0.00018109,82840.0,82839.0,0.2476378]
[1741538571741,9e-08,82840.0,82839.0,0.6084378]
[1741538572639,9e-08,82840.0,82839.0,0.7584378]
[1741538572842,0.2179,82890.0,82839.0,0.7584378]
[1741538572843,0.1221,82873.0,82844.0,0.33372021]
[1741538573045,0.128,82877.0,82870.0,0.1206926]
[1741538573343,0.3608,82879.0,82870.0,0.1206926]
[1741538573543,0.1206781,82880.0,82870.0,0.4814926]
[1741538573731,0.1221,82889.0,82870.0,0.4814926]
[1741538573937,0.00018109,82879.0,82870.0,0.4814926]
[1741538574137,0.00018109,82879.0,82870.0,0.49204823]
[1741538574345,0.00018109,82879.0,82878.0,0.120681]
[1741538574742,0.00018109,82879.0,82878.0,0.481481]
[1741538575539,0.1206508,82899.0,82897.0,0.1206527]
[1741538575734,0.2524,82907.0,82899.0,0.1206504]
[1741538576048,0.1206468,82902.0,82899.0,0.4814504]
[1741538576340,0.12888,82917.0,82899.0,0.2475]
[1741538576547,0.1206391,82907.0,82905.0,0.1206411]
[1741538576748,0.0603193,82908.0,82903.0,0.1206431]
[1741538577041,0.2524,82908.0,82900.0,0.06050467]
[1741538577247,0.0604334,82916.0,82904.0,0.3608]
[1741538577437,0.0603146,82914.0,82901.0,0.0603233]
[1741538577641,0.1206404,82906.0,82905.0,0.120641]
[1741538577847,0.1206385,82908.0,82907.0,0.1206386]
[1741538578142,0.1286,82916.0,82914.0,0.1206285]
[1741538578143,0.00012,82916.0,82914.0,0.1206285]
[1741538578347,0.1207456,82916.0,82915.0,0.1206271]
[1741538578549,0.1207456,82916.0,82915.0,0.248]
[1741538578850,0.1206436,82905.0,82900.0,0.18894527]
[1741538579046,0.120646,82902.0,82901.0,0.3686475]
[1741538579348,0.3608,82912.0,82906.0,0.1206387]
[1741538579545,0.2438357,82911.0,82910.0,0.1206329]
[1741538579744,0.1809566,82909.0,82908.0,0.1206367]
[1741538579944,0.1232,82911.0,82906.0,0.0603194]
[1741538580140,0.1206344,82911.0,82910.0,0.1206344]
[1741538580339,0.1206344,82911.0,82910.0,0.1809514]
[1741538580545,0.2513298,82914.0,82913.0,0.12063]
[1741538580739,0.00012,82916.0,82913.0,0.12063]
[1741538580939,0.00012,82916.0,82915.0,0.1206271]
[1741538581446,1e-07,82916.0,82915.0,0.3671271]
[1741538581747,0.3608,82939.0,82915.0,0.3671271]
[1741538581748,0.01676466,82946.0,82915.0,0.3965]
[1741538582051,0.3608,82955.0,82952.0,0.1205721]
[1741538582349,0.3608,82955.0,82953.0,0.2465]
[1741538582848,0.4210848,82955.0,82946.0,0.3608]
[1741538583051,0.1294,82954.0,82953.0,0.1205718]
[1741538583261,0.3608,82955.0,82954.0,0.1205704]
[1741538583549,0.1205358,82978.0,82954.0,0.3608]
[1741538583749,0.0602692,82976.0,82968.0,0.33372021]
[1741538583938,0.1339,82975.0,82969.0,0.1272]
[1741538584144,0.1339,82975.0,82968.0,0.12828]
[1741538584349,0.0602754,82968.0,82964.0,0.00018082]
[1741538584653,0.3608,82965.0,82939.0,0.01051822]
[1741538584844,0.1205966,82936.0,82935.0,0.21248]
[1741538585037,0.12832,82945.0,82935.0,0.21248]
[1741538585241,0.1941924,82944.0,82935.0,0.21248]
[1741538585445,0.1941924,82944.0,82924.0,0.13012903]
[1741538585446,0.1206126,82925.0,82924.0,0.00180903]
[1741538585650,0.3608,82931.0,82924.0,0.00180903]
[1741538586047,0.3608,82931.0,82925.0,0.1272]
[1741538586048,0.1206111,82926.0,82925.0,0.1272]
[1741538586347,0.1206126,82925.0,82924.0,0.00180903]
[1741538586553,0.3881126,82925.0,82924.0,0.00180903]
[1741538587051,0.2675,82925.0,82898.0,0.00180938]
[1741538587355,0.1206504,82899.0,82898.0,0.00180938]
[1741538589244,0.120662,82891.0,82890.0,0.00018094]
[1741538589446,0.481462,82891.0,82890.0,0.00018094]
[1741538590550,0.3608,82891.0,82881.0,0.21248]
[1741538590852,0.3608,82891.0,82860.0,0.69452021]
[1741538590853,0.3608,82882.0,82864.0,0.21429016]
[1741538591151,0.39364,82881.0,82872.0,0.1206884]
[1741538591359,0.1206868,82874.0,82873.0,0.1272]
[1741538591553,0.1206868,82874.0,82873.0,0.2478882]
[1741538591746,0.1206829,82877.0,82876.0,0.1206825]
[1741538592055,0.1206868,82874.0,82873.0,0.1272]
[1741538592256,0.1206868,82874.0,82865.0,0.06053064]
[1741538592257,0.1206984,82866.0,82865.0,0.00018094]
[1741538592451,0.1222,82873.0,82872.0,0.1206897]
[1741538592649,0.2428882,82873.0,82872.0,0.1206897]
[1741538592845,0.3608,82874.0,82873.0,0.1206882]
[1741538593041,0.12848,82889.0,82869.0,0.12848]
[1741538593346,0.12848,82889.0,82881.0,0.1206766]
[1741538593848,0.25,82896.0,82881.0,0.4814766]
[1741538594045,0.13005051,82899.0,82882.0,0.0603375]
[1741538594245,0.13005051,82899.0,82888.0,0.3608]
[1741538594246,0.1002,82895.0,82888.0,0.3608]
[1741538594446,0.00181051,82899.0,82898.0,0.1206518]
[1741538594749,0.1206533,82897.0,82896.0,0.1273]
[1741538595442,0.1206649,82889.0,82888.0,0.00018094]
[1741538595642,0.4814649,82889.0,82888.0,0.00018094]
[1741538596355,0.1278,82892.0,82889.0,0.0603319]
[1741538596651,0.1206649,82889.0,82888.0,0.00018094]
[1741538596952,0.4814649,82889.0,82888.0,0.00018094]
[1741538597143,0.1206649,82889.0,82888.0,0.00018094]
[1741538597342,0.4814649,82889.0,82888.0,0.00018094]
[1741538597548,0.4814649,82889.0,82888.0,0.12084734]
[1741538597749,0.6108649,82889.0,82888.0,0.00018094]
[1741538598350,0.6108649,82889.0,82888.0,0.12084734]
[1741538598351,0.3608,82889.0,82888.0,0.12084734]
[1741538598551,0.1294,82897.0,82888.0,0.00018094]
[1741538598854,0.02830387,82914.0,82888.0,0.00018094]
[1741538598855,0.3608,82916.0,82902.0,0.0603224]
[1741538599046,0.3608,82923.0,82898.0,0.1206518]
[1741538599047,0.1339,82923.0,82922.0,0.1206169]
[1741538599251,1e-08,82925.0,82924.0,0.120614]
[1741538599864,1e-08,82925.0,82924.0,0.253414]
[1741538600249,1e-08,82925.0,82924.0,0.380494]
[1741538600868,1e-08,82925.0,82924.0,0.253414]
[1741538601163,1e-08,82925.0,82924.0,0.614214]
[1741538601346,1e-08,82925.0,82924.0,0.750314]
[1741538601548,1e-08,82925.0,82924.0,0.389514]
[1741538602254,0.00018062,82933.0,82932.0,0.1206024]
[1741538602452,0.2716,82953.0,82952.0,0.1205733]
[1741538602668,0.2716,82953.0,82946.0,0.0602909]
[1741538602954,0.2716,82953.0,82933.0,0.2582]
[1741538602955,0.3608,82951.0,82933.0,0.2582]
[1741538603260,0.0602988,82936.0,82932.0,0.21248]
[1741538603448,0.0602988,82936.0,82927.0,0.3788087]
[1741538603449,0.1206082,82928.0,82927.0,0.3788087]
[1741538603752,0.0603032,82930.0,82926.0,0.00198982]
[1741538603753,0.1206096,82927.0,82926.0,0.00198982]
[1741538603945,0.2590696,82927.0,82926.0,0.00198982]
[1741538604454,0.6198696,82927.0,82926.0,0.00198982]
[1741538605052,0.6198696,82927.0,82926.0,0.12260092]
[1741538605258,0.1331,82928.0,82926.0,0.12260092]
[1741538605458,0.3608,82944.0,82933.0,0.1206009]
[1741538605650,0.1205982,82940.0,82939.0,0.1808845]
[1741538605850,0.39466,82943.0,82942.0,0.1205878]
[1741538606149,0.12596,82943.0,82942.0,0.1205878]
[1741538606351,0.1205907,82940.0,82939.0,0.0602947]
[1741538606658,0.1206096,82927.0,82920.0,0.0603092]
[1741538606858,0.4814096,82927.0,82924.0,0.3206132]
[1741538607056,0.4814096,82927.0,82926.0,0.12260092]
[1741538607250,0.4814096,82927.0,82926.0,0.00198982]
[1741538607551,0.7795,82927.0,82913.0,0.21403296]
[1741538607751,0.4814286,82914.0,82913.0,0.21331296]
[1741538607954,0.6070286,82914.0,82913.0,0.21331296]
[1741538608460,0.7570286,82914.0,82913.0,0.21331296]
[1741538608652,1.0257286,82914.0,82913.0,0.00121296]
[1741538608954,0.1206344,82910.0,82909.0,0.07453635]
[1741538609156,0.6993344,82910.0,82909.0,0.07453635]
[1741538609556,0.6993344,82910.0,82909.0,0.19517215]
[1741538610053,0.6993344,82910.0,82905.0,0.06050103]
[1741538610054,0.1206402,82906.0,82905.0,0.00018083]